bitfinex/quotes_ETHUSD_20250529
["timestamp","ask_amount","ask_price","bid_price","bid_amount"]
[1748522262576,3.862,2711.9,2711.7,3.68759943]
[1748522262776,3.862,2711.9,2711.6,3.68778661]
[1748522263099,3.862,2711.9,2711.5,3.68792308]
[1748522263266,3.862,2711.9,2711.4,3.68807511]
[1748522263267,7.54946728,2711.9,2711.4,3.68805874]
[1748522263466,1.0811,2711.8,2711.5,3.68798966]
[1748522264051,4.76879545,2711.8,2711.3,3.6882347]
[1748522264258,3.68773382,2711.7,2711.4,8.0]
[1748522264484,4.76874839,2711.8,2711.4,8.0]
[1748522264759,1.0811,2711.8,2711.4,3.68812373]
[1748522265366,1.0811,2711.8,2711.2,11.68837196]
[1748522265367,4.76871174,2711.8,2711.3,11.68820248]
[1748522265575,4.76869581,2711.8,2711.4,3.68812582]
[1748522265762,4.76869581,2711.8,2711.3,11.68820313]
[1748522266191,4.76869581,2711.8,2711.2,3.68833404]
[1748522266192,3.68781204,2711.7,2711.2,3.68833404]
[1748522266392,1.035,2712.2,2711.1,0.05]
[1748522266393,1.0195,2711.5,2711.1,0.05]
[1748522266558,1.0195,2711.5,2711.1,3.72165851]
[1748522267101,1.0195,2711.5,2711.1,3.72162084]
[1748522267409,1.0195,2711.5,2711.2,3.68838616]
[1748522267894,4.70759868,2711.5,2711.1,0.03320065]
[1748522268068,1.0195,2711.5,2711.1,3.72173324]
[1748522268268,4.70758543,2711.5,2711.1,0.03320065]
[1748522268883,1.0195,2711.5,2711.1,0.03320065]
[1748522269102,4.70751377,2711.5,2711.1,3.72172309]
[1748522269292,1.0195,2711.5,2711.1,3.72170474]
[1748522269463,1.0195,2711.5,2711.1,0.03320065]
[1748522270460,1.01449174,2711.5,2711.1,0.03320065]
[1748522271062,3.861,2711.4,2711.2,3.68834407]
[1748522271285,3.861,2711.4,2711.1,3.7216304]
[1748522272196,3.861,2711.4,2711.2,3.68838654]
[1748522272415,3.861,2711.4,2711.1,3.72171756]
[1748522273465,3.85458282,2711.4,2711.1,3.72171756]
[1748522273722,3.85458282,2711.4,2711.1,0.03320065]
[1748522274227,7.54279092,2711.4,2711.1,0.03320065]
[1748522274522,3.6883136,2711.3,2711.1,0.03320065]
[1748522274665,3.85458282,2711.4,2711.1,0.03320065]
[1748522274886,4.68490365,2711.2,2711.1,0.03320065]
[1748522280442,9.57990365,2711.2,2711.1,0.03320065]
[1748522280732,10.12990365,2711.2,2711.1,0.03320065]
[1748522281771,10.12990365,2711.2,2710.1,0.05]
[1748522281772,3.68976459,2710.2,2710.1,0.05]
[1748522281911,8.56726459,2710.2,2710.1,0.05]
[1748522282599,9.11726459,2710.2,2710.1,0.05]
[1748522285544,5.2504345,2710.2,2710.1,0.05]
[1748522285822,10.1454345,2710.2,2710.1,0.05]
[1748522285981,10.50896694,2710.2,2710.1,0.05]
[1748522286733,10.50896694,2710.2,2708.8,3.69165192]
[1748522286734,3.69038605,2709.8,2708.8,2.97845945]
[1748522286894,3.86,2709.7,2709.2,3.69099297]
[1748522287441,3.86,2709.7,2709.3,3.69092416]
[1748522287984,7.55046681,2709.7,2709.0,3.69138863]
[1748522288185,4.8757,2709.7,2708.9,0.29784595]
[1748522288431,8.56619952,2709.7,2709.2,3.69108654]
[1748522288809,8.56619952,2709.7,2709.1,3.69119874]
[1748522289239,0.14569535,2709.7,2709.3,10.0]
[1748522289448,3.859,2710.3,2709.6,3.69058163]
[1748522289736,3.6898411,2710.2,2709.7,3.69043637]
[1748522289955,3.6898411,2710.2,2709.6,3.69051802]
[1748522290104,3.6898411,2710.2,2709.7,3.69042946]
[1748522290300,3.859,2710.3,2709.5,0.87]
[1748522290507,3.859,2710.3,2709.6,3.69058163]
[1748522290732,7.93463738,2710.3,2709.6,3.69058163]
[1748522290940,3.68983814,2710.2,2709.7,3.69035701]
[1748522291137,3.68958897,2710.4,2709.8,3.69020973]
[1748522291342,3.859,2710.1,2709.8,3.69020973]
[1748522292306,3.859,2710.1,2709.7,3.69038706]
[1748522292640,1.0928,2710.3,2709.9,3.69009738]
[1748522293003,3.859,2710.2,2709.9,3.69009738]
[1748522293206,3.859,2710.3,2710.0,3.69003011]
[1748522293416,1.1176,2710.5,2710.1,3.68988906]
[1748522293607,3.859,2710.3,2710.1,3.68988906]
[1748522293815,5.83995645,2710.5,2710.0,3.68997609]
[1748522294039,5.83995645,2710.5,2710.1,3.68984925]
[1748522294040,3.859,2710.4,2710.1,3.68984925]
[1748522294706,3.859,2710.4,2710.0,3.6899616]
[1748522295120,1.1176,2710.5,2710.1,3.68987667]
[1748522295346,3.859,2710.4,2710.1,3.68987667]
[1748522295658,3.859,2710.4,2710.1,3.68990074]
[1748522295953,2.0773,2710.7,2710.3,3.68954281]
[1748522296163,3.859,2710.6,2710.3,3.68954281]
[1748522296456,1.033,2710.7,2710.3,3.68954281]
[1748522296457,3.859,2710.7,2710.3,3.68954281]
[1748522296752,3.859,2710.7,2710.4,4.55939792]
[1748522296914,3.859,2710.7,2710.4,0.87]
[1748522297113,1.0105,2710.5,2709.8,4.56023053]
[1748522297313,1.0105,2710.5,2709.9,3.6901523]
[1748522297673,3.68926816,2710.6,2710.2,3.68976256]
[1748522297674,3.858,2710.6,2710.2,3.68976256]
[1748522297853,3.858,2710.6,2710.2,3.68975151]
[1748522298949,3.858,2710.6,2710.3,3.68951611]
[1748522299743,3.858,2710.6,2710.2,3.68970585]
[1748522299940,3.858,2710.6,2710.2,3.68972513]
[1748522300119,3.858,2710.6,2710.1,4.55986669]
[1748522300451,3.68911257,2710.7,2710.2,3.68965386]
[1748522300607,3.858,2710.6,2710.2,3.68965386]
[1748522300814,4.76702061,2710.9,2710.4,3.68940841]
[1748522301014,4.76702061,2710.9,2710.5,3.68923063]
[1748522301015,0.05,2710.9,2710.5,3.68923063]
[1748522301266,0.05,2710.9,2710.5,5.29709968]
[1748522301453,3.908,2710.9,2710.5,5.29715241]
[1748522301655,3.908,2710.9,2710.5,1.60786905]
[1748522301656,0.05,2710.9,2710.5,1.60786905]
[1748522301877,0.05,2710.9,2710.8,3.68894791]
[1748522302635,0.05,2710.9,2710.8,12.55894791]
[1748522302864,0.05,2710.9,2710.8,14.1837511]
[1748522303671,0.05,2710.9,2710.8,27.9450321]
[1748522306180,0.05,2710.9,2710.8,26.3169001]
[1748522307082,0.05,2710.9,2710.8,24.9909001]
[1748522312162,0.05,2710.9,2710.8,20.6381571]
[1748522312366,0.05,2710.9,2710.8,16.45222391]
[1748522312587,0.04591034,2710.9,2710.8,8.70817091]
[1748522313190,0.04591034,2710.9,2710.8,16.70817091]
[1748522314568,0.04591034,2710.9,2710.8,13.019223]
[1748522315276,0.04591034,2710.9,2710.8,8.0]
[1748522318665,3.72905348,2710.9,2710.8,8.0]
[1748522318983,0.04024165,2710.9,2710.8,8.0]
[1748522319168,3.72905348,2710.9,2710.8,8.0]
[1748522319374,0.04024165,2710.9,2710.8,8.0]
[1748522319571,3.72905348,2710.9,2710.8,8.0]
[1748522319759,0.04024165,2710.9,2710.8,8.0]
[1748522320181,7.40770429,2711.0,2710.9,8.0]
[1748522320480,7.40770429,2711.0,2709.4,3.69074328]
[1748522320481,3.71900636,2711.0,2710.2,3.68973763]
[1748522320976,3.71900636,2711.0,2710.1,1.31936386]
[1748522320977,3.71900636,2711.0,2710.3,8.0]
[1748522321186,3.68943683,2710.5,2710.1,2.039103]
[1748522321396,3.68956658,2710.4,2710.1,2.039103]
[1748522321594,3.68956658,2710.4,2710.1,2.067503]
[1748522321825,3.68956658,2710.4,2710.3,8.0]
[1748522321986,3.68956658,2710.4,2710.1,2.067503]
[1748522322177,7.54242368,2710.5,2710.1,8.0]
[1748522322373,3.853,2710.5,2710.1,15.96238383]
[1748522322631,3.853,2710.5,2710.1,3.68988083]
[1748522322832,7.54236379,2710.5,2710.0,22.05674731]
[1748522323143,7.54236379,2710.5,2710.1,8.0]
[1748522323319,7.54236379,2710.5,2710.0,0.36678611]
[1748522323512,3.68996592,2710.1,2709.6,3.69050247]
[1748522323701,3.853,2710.2,2709.7,6.45157925]
[1748522323876,3.853,2710.2,2710.0,8.0]
[1748522324392,3.853,2710.2,2710.0,11.68995717]
[1748522324791,3.853,2710.2,2710.0,8.0]
[1748522325026,3.853,2710.2,2710.0,11.68995008]
[1748522325232,3.853,2710.3,2710.1,3.68988498]
[1748522325379,4.71811646,2710.7,2710.1,3.68988498]
[1748522325380,1.0927,2710.7,2710.2,3.68967204]
[1748522325581,1.0927,2710.7,2710.4,3.68948694]
[1748522325582,3.853,2710.6,2710.4,3.68948694]
[1748522326539,3.853,2710.6,2710.3,3.68952051]
[1748522326677,1.0927,2710.7,2710.3,2.27703185]
[1748522326879,3.853,2710.8,2710.5,3.68935108]
[1748522327134,3.853,2710.8,2710.6,3.68916022]
[1748522327682,1.0211,2711.0,2710.5,0.8274]
[1748522327899,3.852,2711.0,2710.6,3.68922009]
[1748522328230,7.54074727,2711.0,2710.5,4.51666606]
[1748522328377,3.68860367,2711.1,2710.6,3.6891955]
[1748522328783,7.54060367,2711.1,2710.6,3.6891955]
[1748522329690,3.852,2711.1,2710.7,3.68900689]
[1748522329876,7.54055862,2711.1,2710.6,3.68915479]
[1748522330080,3.852,2711.1,2710.7,3.68903524]
[1748522330276,3.852,2711.1,2710.5,1.64802366]
[1748522330636,7.54059475,2711.1,2710.7,8.0]
[1748522330838,7.53523225,2711.1,2710.6,8.53374814]
[1748522330980,3.68874463,2711.0,2710.6,8.53374814]
[1748522331384,7.53528664,2711.1,2710.6,12.22296338]
[1748522331618,3.84667153,2711.1,2710.6,8.53374814]
[1748522331778,3.84667153,2711.1,2710.1,3.68988967]
[1748522331779,1.0796,2710.8,2710.0,9.90798048]
[1748522331979,4.76860948,2710.8,2710.4,8.0]
[1748522332682,1.0796,2710.8,2710.2,8.0]
[1748522332892,3.68914659,2710.7,2710.4,18.0]
[1748522333193,3.68914659,2710.7,2710.4,8.0]
[1748522333394,4.76855013,2710.8,2710.4,8.0]
[1748522333793,3.68912739,2710.7,2710.4,8.0]
[1748522334746,3.6893562,2710.5,2710.4,8.0]
[1748522336793,3.689576,2710.4,2710.0,1.19698797]
[1748522336997,4.702476,2710.4,2710.0,8.36958797]
[1748522337252,1.0129,2710.4,2710.0,9.57555608]
[1748522337453,1.0129,2710.4,2710.2,8.0]
[1748522338011,8.5508589,2710.6,2710.2,8.0]
[1748522338215,3.68936759,2710.5,2710.0,13.26554725]
[1748522338698,3.68949706,2710.4,2710.0,13.26554725]
[1748522338933,8.55083713,2710.6,2709.7,0.8274]
[1748522338934,3.68994464,2710.1,2709.7,0.8274]
[1748522339140,3.6901046,2710.0,2709.5,3.69063775]
[1748522339299,3.69017975,2709.9,2709.5,10.0]
[1748522339644,3.851,2709.8,2709.5,1.81182228]
[1748522339846,3.851,2709.8,2709.5,8.0]
[1748522340001,7.54137185,2709.8,2709.2,12.4275518]
[1748522340197,3.851,2709.8,2709.5,8.0]
[1748522340412,3.851,2709.8,2709.3,11.69085804]
[1748522340413,7.54139995,2709.8,2709.3,3.69092693]
[1748522340741,0.9992,2709.7,2709.4,8.0]
[1748522341562,0.9992,2709.7,2709.4,3.69085091]
[1748522341857,3.69010065,2710.0,2709.5,11.69071663]
[1748522341999,3.851,2709.9,2709.5,11.69071663]
[1748522342658,3.851,2709.9,2709.6,3.69057398]
[1748522342807,1.0339,2710.0,2709.6,3.69057398]
[1748522343001,3.851,2709.8,2709.5,11.69065663]
[1748522344240,1.0414,2710.3,2709.7,10.0]
[1748522344430,3.851,2710.2,2709.8,3.69019888]
[1748522344630,3.851,2710.2,2709.7,3.69038391]
[1748522344631,7.54078836,2710.2,2709.7,3.69038391]
[1748522344942,3.69020913,2709.9,2709.5,8.0]
[1748522345140,3.68953115,2710.4,2709.3,4.42739993]
[1748522345141,1.0414,2710.6,2709.3,0.7365]
[1748522345365,3.68986359,2710.2,2709.7,3.69038256]
[1748522345541,3.85,2710.1,2709.8,3.69030222]
[1748522346542,7.53991718,2710.1,2709.6,3.69050704]
[1748522346741,3.85,2710.1,2709.8,3.6902481]
[1748522347244,3.85,2710.1,2709.7,3.69037466]
[1748522347414,3.85,2710.1,2709.9,3.69009745]
[1748522347614,3.85,2710.1,2709.8,3.69023269]
[1748522348150,4.6845042,2710.2,2709.7,12.42845497]
[1748522348440,3.85,2710.1,2709.8,3.69029613]
[1748522348646,0.9947,2710.2,2709.7,8.73808764]
[1748522348847,4.8299,2710.5,2710.1,3.68978553]
[1748522349152,8.51927393,2710.5,2710.0,3.68997539]
[1748522349304,4.8299,2710.5,2710.1,3.68983509]
[1748522349705,3.68915862,2710.7,2710.2,3.68974873]
[1748522349913,8.598542,2710.6,2710.1,11.68983213]
[1748522350124,7.53943247,2710.5,2710.1,8.0]
[1748522350716,3.85,2710.5,2710.2,3.6897144]
[1748522351905,3.85,2710.5,2710.0,3.6900369]
[1748522352226,3.85,2710.4,2709.9,8.7365]
[1748522352425,3.85,2710.5,2710.1,8.0]
[1748522352624,3.85,2710.4,2710.1,8.0]
[1748522352942,3.85,2710.4,2710.1,11.68987731]
[1748522353127,3.85,2710.4,2710.0,11.68996504]
[1748522353451,3.85,2710.4,2710.0,11.68996476]
[1748522353753,3.85,2710.4,2710.0,12.0598873]
[1748522354512,3.85,2710.4,2710.1,3.68988627]
[1748522354903,3.84350277,2710.4,2710.1,3.68988627]
[1748522355750,3.84350277,2710.4,2710.2,3.68976231]
[1748522356041,3.849,2710.4,2710.2,3.68976231]
[1748522356458,3.849,2710.4,2710.0,0.36992254]
[1748522356605,3.68916189,2710.7,2710.2,3.68975931]
[1748522356805,3.849,2710.6,2710.4,3.68940641]
[1748522357314,4.70765051,2710.8,2710.4,3.68940641]
[1748522357506,1.0187,2710.8,2710.4,3.68940641]
[1748522357706,3.849,2710.7,2710.4,3.68940641]
[1748522358129,3.849,2710.7,2710.3,3.689574]
[1748522359191,3.849,2710.7,2710.4,3.68948807]
[1748522359948,3.849,2710.6,2710.4,3.68948807]
[1748522360847,3.849,2710.6,2710.3,3.68958889]
[1748522361306,3.84215955,2710.6,2710.3,3.68958889]
[1748522361510,3.84215955,2710.6,2710.1,11.68983692]
[1748522361808,3.84215955,2710.6,2710.2,3.68968785]
[1748522362008,7.53146346,2710.6,2710.1,3.68989486]
[1748522362209,0.9885,2710.5,2710.1,3.68989486]
[1748522362711,0.9885,2710.5,2710.2,3.68973477]
[1748522363518,0.9885,2710.5,2710.1,3.6898123]
[1748522364202,4.67787599,2710.5,2710.1,3.6898123]
[1748522364402,0.9885,2710.5,2710.1,3.6898123]
[1748522364606,0.9885,2710.5,2710.2,3.68973801]
[1748522364921,3.848,2710.4,2710.2,3.68973801]
[1748522365416,3.848,2710.4,2710.1,3.68982084]
[1748522365620,3.848,2710.4,2710.2,3.68974102]
[1748522367964,3.68902977,2710.8,2710.4,3.68949232]
[1748522368173,3.848,2710.7,2710.4,3.68949232]
[1748522368308,3.848,2710.7,2710.3,3.68954982]
[1748522368949,3.848,2710.7,2710.4,3.68946015]
[1748522369153,1.0499,2710.8,2710.1,8.7365]
[1748522369338,1.0499,2710.8,2710.6,3.68919287]
[1748522369541,3.847,2710.8,2710.7,3.689084]
[1748522370263,3.847,2710.8,2710.2,1.91078628]
[1748522370264,3.84017156,2710.8,2710.2,1.91078628]
[1748522370415,3.84017156,2710.8,2710.5,3.68934709]
[1748522371143,3.847,2710.8,2710.5,3.68934709]
[1748522371851,3.847,2710.8,2710.5,3.68927573]
[1748522372055,3.847,2710.8,2710.6,3.68920009]
[1748522372730,3.847,2710.8,2710.1,11.5404184]
[1748522372938,3.847,2710.8,2710.5,3.68926029]
[1748522373262,3.847,2710.8,2710.6,3.68918889]
[1748522374137,3.847,2710.8,2710.5,3.68928304]
[1748522374450,4.65648466,2711.0,2710.5,3.68928304]
[1748522374630,3.846,2710.9,2710.7,3.6890273]
[1748522374844,3.846,2710.9,2710.6,3.68911163]
[1748522375033,3.846,2710.9,2710.5,3.68929711]
[1748522375362,4.65649875,2711.0,2710.5,3.68929711]
[1748522375561,3.846,2710.8,2710.5,13.68929711]
[1748522375731,3.846,2710.8,2710.5,3.68929711]
[1748522375917,3.846,2710.8,2710.4,3.6894568]
[1748522376120,3.846,2710.8,2710.3,10.0]
[1748522376121,3.846,2710.8,2710.5,3.6893487]
[1748522376320,3.846,2710.8,2710.5,13.6893487]
[1748522376543,3.846,2710.8,2710.5,3.6893487]
[1748522376952,3.846,2710.8,2710.4,3.920178]
[1748522377155,3.846,2710.8,2710.5,10.0]
[1748522378165,3.846,2710.8,2710.3,10.0]
[1748522378326,3.846,2710.8,2710.2,9.19117812]
[1748522378327,3.846,2710.9,2710.5,3.68926782]
[1748522378964,7.53481636,2710.9,2710.5,10.0]
[1748522379169,3.846,2710.9,2710.3,3.746374]
[1748522379467,7.5348716,2710.9,2710.4,3.68943009]
[1748522379843,3.846,2710.9,2710.5,3.68934255]
[1748522380044,3.846,2710.9,2710.5,13.68934255]
[1748522380236,3.846,2710.9,2710.5,3.68934255]
[1748522380648,3.846,2710.9,2710.5,13.68934255]
[1748522380866,3.846,2710.9,2710.4,3.68944817]
[1748522381386,7.53483811,2710.9,2710.5,10.0]
[1748522382071,1.054,2710.6,2710.0,0.37136284]
[1748522382266,3.68970818,2710.3,2709.3,4.1188214]
[1748522382465,1.0107,2710.2,2709.9,8.0]
[1748522382756,1.0107,2710.2,2709.9,11.69016616]
[1748522383747,1.0107,2710.2,2710.0,3.68998254]
[1748522384489,1.0107,2710.2,2709.9,11.69016422]
[1748522384894,1.0107,2710.2,2710.0,3.69002974]
[1748522386931,3.845,2710.3,2710.1,3.68990074]
[1748522387590,1.0407,2710.4,2710.1,3.68990074]
[1748522389326,1.0407,2710.4,2710.0,3.6899812]
[1748522389897,1.0407,2710.4,2710.0,13.6899812]
[1748522390512,1.0407,2710.4,2710.1,3.68988576]
[1748522390925,1.0407,2710.4,2710.0,13.68996654]
[1748522391124,1.0407,2710.4,2710.1,3.68988801]
[1748522392225,1.0407,2710.4,2710.1,3.68983838]
[1748522393247,4.8847,2710.4,2710.1,3.68983838]
[1748522395140,4.8847,2710.4,2710.1,3.68988773]
[1748522395302,8.57420206,2710.4,2710.0,10.0]
[1748522395503,4.8847,2710.4,2710.0,3.68998912]
[1748522396225,5.34890249,2710.4,2709.9,8.0]
[1748522396576,9.03844332,2710.4,2709.9,11.69015787]
[1748522397261,5.34890249,2710.4,2709.4,7.53382866]
[1748522397465,8.57426288,2710.4,2710.0,11.69003622]
[1748522397627,3.843,2710.3,2710.0,11.69003622]
[1748522398656,3.843,2710.3,2710.0,8.0]
[1748522399245,3.843,2710.3,2710.0,3.69002881]
[1748522399538,3.843,2710.3,2710.0,3.69003456]
[1748522400070,3.843,2710.3,2709.9,3.69010681]
[1748522400251,7.53269467,2710.3,2709.8,3.69029985]
[1748522400454,7.53269467,2710.3,2709.4,10.0]
[1748522400455,0.99,2710.2,2709.4,10.0]
[1748522400674,3.68996062,2710.1,2709.6,3.69052388]
[1748522401082,3.843,2710.0,2709.6,3.69052388]
[1748522401311,3.843,2710.0,2709.7,3.69043259]
[1748522401599,3.843,2710.0,2709.6,3.6905253]
[1748522401927,3.843,2710.0,2709.7,8.0]
[1748522402521,0.99,2710.2,2709.7,1.53811353]
[1748522402784,4.833,2710.2,2709.9,3.69010344]
[1748522403155,4.833,2710.2,2709.9,3.69016612]
[1748522403539,4.833,2710.2,2710.0,8.0]
[1748522405286,4.833,2710.2,2709.9,3.36752564]
[1748522405847,4.832,2710.2,2709.9,3.36752564]
[1748522406044,3.69011306,2710.0,2709.5,3.69064705]
[1748522406590,3.68996534,2710.1,2709.6,3.69056124]
[1748522407291,3.68996534,2710.1,2709.5,3.69065118]
[1748522407462,3.69004472,2710.0,2709.6,10.0]
[1748522407787,3.68995971,2710.1,2709.6,3.69058108]
[1748522408467,4.67983621,2710.2,2709.7,3.69043215]
[1748522408789,4.832,2710.2,2709.7,0.73811242]
[1748522408993,4.832,2710.2,2709.8,3.69019966]
[1748522409386,4.82686065,2710.2,2709.8,3.69019966]
[1748522409596,3.68993419,2710.1,2709.6,3.73645508]
[1748522409891,3.68993419,2710.1,2709.6,3.69045508]
[1748522410189,3.68998588,2710.1,2709.5,3.6906906]
[1748522410390,3.68998588,2710.1,2709.6,3.69051927]
[1748522411229,3.69029182,2709.9,2709.5,10.0]
[1748522411529,3.69052285,2709.7,2709.2,3.69111514]
[1748522411798,3.690946,2709.4,2709.1,0.05]
[1748522411949,3.69072012,2709.5,2709.1,0.05]
[1748522411950,3.69079425,2709.5,2709.1,0.05]
[1748522412353,1.0144,2709.4,2709.1,0.05]
[1748522413170,1.0144,2709.4,2709.1,3.74126021]
[1748522413508,1.0144,2709.4,2709.1,0.05]
[1748522413509,3.69102216,2709.3,2709.1,0.05]
[1748522413657,8.62092653,2709.2,2709.1,0.05]
[1748522414553,9.17092653,2709.2,2709.1,0.05]
[1748522415464,9.16630552,2709.2,2709.1,0.05]
[1748522416611,3.69217548,2708.5,2708.1,0.05]
[1748522416831,3.841,2708.5,2708.1,1.42427315]
[1748522417103,3.841,2708.5,2708.1,5.11688283]
[1748522417310,3.841,2708.5,2708.2,3.69248947]
[1748522417609,3.841,2708.5,2708.1,1.42427315]
[1748522417918,7.53309111,2708.5,2708.1,0.05]
[1748522418215,3.841,2708.5,2708.1,0.05]
[1748522418567,3.841,2708.5,2708.1,3.74262445]
[1748522419898,3.841,2708.5,2708.1,0.05]
[1748522419899,0.9944,2708.4,2708.1,0.05]
[1748522420072,4.68688947,2708.2,2708.1,0.05]
[1748522421465,4.68258867,2708.2,2708.1,0.05]
[1748522422013,4.68688947,2708.2,2708.1,0.05]
[1748522422560,4.8354,2708.2,2708.1,0.05]
[1748522423195,8.52788947,2708.2,2708.1,0.05]
[1748522423396,9.02414199,2708.2,2708.1,0.05]
[1748522427534,9.01791594,2708.2,2708.1,0.05]
[1748522433133,9.56791594,2708.2,2708.1,0.05]
[1748522433508,9.56089937,2708.2,2708.1,0.05]
[1748522435195,3.69385342,2707.2,2707.1,0.05]
[1748522436313,4.17739342,2707.2,2707.1,0.05]
[1748522436540,5.25829342,2707.2,2707.1,0.05]
[1748522438466,3.69363933,2707.4,2707.1,0.05]
[1748522438620,3.841,2707.3,2707.1,0.05]
[1748522439861,4.72088994,2707.5,2707.1,0.05]
[1748522440033,3.841,2707.4,2707.1,0.05]
[1748522440358,7.53459335,2707.4,2707.1,0.05]
[1748522440560,3.69385342,2707.2,2707.1,0.05]
[1748522441170,4.77185342,2707.2,2707.1,0.05]
[1748522442626,8.61285342,2707.2,2707.1,0.05]
[1748522443027,3.841,2707.2,2707.1,0.05]
[1748522443258,3.69375139,2707.3,2707.1,0.05]
[1748522443476,3.841,2707.2,2707.1,0.05]
[1748522443967,3.69365533,2707.4,2707.1,0.05]
[1748522444151,3.841,2707.3,2707.1,0.05]
[1748522444321,3.69365533,2707.4,2707.1,0.05]
[1748522444523,3.69366354,2707.4,2707.1,0.05]
[1748522444726,3.841,2707.3,2707.1,0.05]
[1748522444924,7.53478683,2707.3,2707.1,0.05]
[1748522445126,3.69385342,2707.2,2707.1,0.05]
[1748522446152,4.77825342,2707.2,2707.1,0.05]
[1748522447754,3.841,2707.2,2707.1,0.05]
[1748522448198,2.0772,2707.4,2707.1,0.05]
[1748522448199,4.74984554,2707.4,2707.1,0.05]
[1748522448487,3.841,2707.2,2707.1,0.05]
[1748522449869,3.69385342,2707.2,2707.1,0.05]
[1748522450067,7.53485342,2707.2,2707.1,0.05]
[1748522450268,8.58605342,2707.2,2707.1,0.05]
[1748522451150,9.48717957,2707.2,2707.1,0.05]
[1748522451358,9.95817957,2707.2,2707.1,0.05]
[1748522451560,9.60705342,2707.2,2707.1,0.05]
[1748522452588,9.60605342,2707.2,2707.1,0.05]
[1748522454203,10.50723892,2707.2,2707.1,0.05]
[1748522455103,10.50726984,2707.2,2707.1,0.05]
[1748522456122,3.69456159,2706.7,2706.3,2.78357335]
[1748522456328,3.84,2706.6,2706.2,3.69515373]
[1748522456683,3.6950943,2706.3,2706.1,0.05]
[1748522456885,3.69521838,2706.2,2706.1,0.05]
[1748522457501,7.53521838,2706.2,2706.1,0.05]
[1748522457700,8.56791838,2706.2,2706.1,0.05]
[1748522459301,1.1065,2707.0,2706.1,0.05]
[1748522459500,3.69487385,2706.5,2706.1,0.05]
[1748522459703,8.90623034,2706.9,2706.1,0.05]
[1748522459704,7.53495633,2706.4,2706.1,0.05]
[1748522460614,1.021,2706.6,2706.1,0.05]
[1748522460837,7.5348681,2706.5,2706.1,0.05]
[1748522461954,7.5348681,2706.5,2706.1,3.74534407]
[1748522462127,7.5348681,2706.5,2706.1,0.05]
[1748522462321,3.84,2706.5,2706.1,3.74533382]
[1748522462523,3.84,2706.5,2706.2,4.43922785]
[1748522462726,3.84,2706.5,2706.2,0.74408061]
[1748522462933,3.84,2706.5,2706.3,3.69498799]
[1748522463113,3.69521838,2706.2,2706.1,0.05]
[1748522463827,3.69514117,2706.3,2706.1,0.05]
[1748522464050,3.69500503,2706.4,2706.1,0.05]
[1748522464338,3.69510997,2706.3,2706.1,0.05]
[1748522464547,7.53510997,2706.3,2706.1,0.05]
[1748522464848,3.69521838,2706.2,2706.1,0.05]
[1748522465811,4.78461838,2706.2,2706.1,0.05]
[1748522466714,7.53521838,2706.2,2706.1,0.05]
[1748522467831,8.56841838,2706.2,2706.1,0.05]
[1748522468260,9.11841838,2706.2,2706.1,0.05]
[1748522469327,9.07471838,2706.2,2706.1,0.05]
[1748522470544,9.42516676,2706.2,2706.1,0.05]
[1748522473461,3.69658435,2705.2,2705.1,0.05]
[1748522473673,7.53658435,2705.2,2705.1,0.05]
[1748522475030,3.69658435,2705.2,2705.1,0.05]
[1748522475359,7.53658435,2705.2,2705.1,0.05]
[1748522476427,3.69592076,2705.7,2705.1,0.05]
[1748522476675,3.69658435,2705.2,2705.1,0.05]
[1748522478475,4.74538435,2705.2,2705.1,0.05]
[1748522478768,8.55558435,2705.2,2705.1,0.05]
[1748522479474,1.019,2705.4,2705.1,0.05]
[1748522479683,3.84,2705.5,2705.1,0.05]
[1748522479871,3.6964174,2705.4,2705.1,0.05]
[1748522480034,3.84,2705.5,2705.1,0.05]
[1748522480035,7.53624331,2705.5,2705.1,0.05]
[1748522480229,3.69624331,2705.5,2705.1,0.05]
[1748522480435,3.84,2705.4,2705.1,0.05]
[1748522480649,7.53638472,2705.4,2705.1,0.05]
[1748522481375,7.53639134,2705.4,2705.1,0.05]
[1748522481736,3.69623874,2705.5,2705.1,0.05]
[1748522482075,3.84,2705.4,2705.1,0.05]
[1748522482246,7.53632249,2705.4,2705.1,0.05]
[1748522483496,3.84,2705.4,2705.1,0.05]
[1748522483894,3.69625046,2705.5,2705.1,0.05]
[1748522484102,3.84,2705.4,2705.1,3.74668673]
[1748522484406,7.53618958,2705.5,2705.1,0.42468485]
[1748522484972,7.53627997,2705.5,2705.1,0.42468485]
[1748522485456,7.53622203,2705.5,2705.1,0.05]
[1748522485864,3.69658435,2705.2,2705.1,0.05]
[1748522487066,3.69730982,2704.7,2704.2,4.07271143]
[1748522487268,3.69730982,2704.7,2704.1,0.05]
[1748522487269,3.69761137,2704.5,2704.1,0.05]
[1748522487467,3.69749224,2704.6,2704.1,3.74808318]
[1748522487710,3.69749224,2704.6,2704.2,10.0]
[1748522488068,3.69749224,2704.6,2704.1,3.74808318]
[1748522488268,3.839,2704.7,2704.1,1.79464072]
[1748522488632,3.839,2704.7,2704.1,0.05]
[1748522488633,3.69740442,2704.6,2704.1,0.05]
[1748522488791,3.6976831,2704.4,2704.1,0.05]
[1748522489127,3.6976831,2704.4,2704.1,3.74801667]
[1748522489128,3.839,2704.4,2704.1,3.74801667]
[1748522489268,3.839,2704.4,2704.2,3.69787122]
[1748522489630,3.839,2704.4,2704.1,3.74799271]
[1748522489785,3.839,2704.4,2704.1,0.05]
[1748522490334,7.53674935,2704.4,2704.1,0.05]
[1748522490628,7.53671595,2704.4,2704.1,0.05]
[1748522490832,3.69795133,2704.2,2704.1,0.05]
[1748522492352,5.30585133,2704.2,2704.1,0.05]
[1748522493315,3.69795133,2704.2,2704.1,0.05]